bitfinex/quotes_ETHUSD_20240604
["timestamp","ask_amount","ask_price","bid_price","bid_amount"]
[1717465686888,0.06899845,3770.2,3770.0,0.92168332]
[1717465687071,0.564,3770.3,3770.0,0.92168332]
[1717465687239,0.06899845,3770.2,3770.0,0.92168332]
[1717465687439,0.564,3770.3,3770.0,0.92168332]
[1717465687639,2.3081,3771.1,3770.4,2.65219]
[1717465687968,0.564,3770.9,3770.4,2.65219]
[1717465688139,0.06899845,3771.0,3770.4,2.65219]
[1717465688342,0.06919425,3770.8,3770.4,2.65219]
[1717465688698,0.564,3770.9,3770.4,2.65219]
[1717465689381,0.06919425,3770.8,3770.4,2.65219]
[1717465690681,0.564,3771.0,3770.5,2.4204]
[1717465690992,0.06934105,3770.9,3770.6,2.65209]
[1717465691352,0.564,3771.0,3770.6,2.65209]
[1717465692499,0.495963,3771.3,3770.6,2.65209]
[1717465692703,0.564,3771.0,3770.6,2.65209]
[1717465695401,4.95963,3771.4,3770.6,2.65209]
[1717465695607,0.564,3771.0,3770.6,2.65209]
[1717465696609,4.95963,3771.4,3770.6,2.65209]
[1717465696610,0.564,3771.2,3770.6,2.65209]
[1717465696961,0.06935235,3771.1,3770.6,2.65209]
[1717465697263,0.564,3771.2,3770.6,2.65209]
[1717465697483,0.06935235,3771.1,3770.6,2.65209]
[1717465697688,0.564,3771.3,3770.6,2.65209]
[1717465697891,0.63353304,3771.2,3770.6,2.65209]
[1717465701022,0.564,3771.2,3770.6,2.65209]
[1717465702435,0.06958573,3771.1,3770.6,2.65209]
[1717465702784,0.564,3771.2,3770.6,2.65209]
[1717465703189,0.06958573,3771.1,3770.6,2.65209]
[1717465703702,5.6513,3771.8,3770.9,2.65185]
[1717465703855,0.564,3771.4,3771.0,2.3661]
[1717465704263,0.06960832,3771.3,3771.0,2.3661]
[1717465704725,0.06960832,3771.3,3771.1,2.65174]
[1717465705133,2.4615,3771.9,3771.1,2.65174]
[1717465705315,0.564,3771.6,3771.1,2.65174]
[1717465705510,0.06962339,3771.5,3771.1,2.65174]
[1717465706516,0.06962339,3771.5,3771.3,2.65154]
[1717465706852,0.564,3772.1,3771.6,2.65136]
[1717465707274,0.564,3771.9,3771.6,2.65136]
[1717465708044,2.2781,3772.4,3771.6,2.65136]
[1717465708371,0.564,3772.0,3771.6,2.65136]
[1717465709246,2.2977,3772.5,3771.8,2.65124]
[1717465709448,0.564,3772.1,3771.8,2.65124]
[1717465710021,0.06972499,3772.0,3771.8,2.65124]
[1717465711845,0.564,3772.1,3771.8,2.65124]
[1717465712376,0.06972499,3772.0,3771.8,2.65124]
[1717465713870,0.564,3772.1,3771.8,2.65124]
[1717465714467,0.06972499,3772.0,3771.8,2.65124]
[1717465714878,0.06972499,3772.0,3771.8,2.916364]
[1717465715175,0.564,3772.2,3771.8,2.916364]
[1717465715346,0.06985669,3771.9,3771.8,2.916364]
[1717465715549,0.564,3772.2,3771.8,2.916364]
[1717465715747,0.06985669,3771.9,3771.8,2.916364]
[1717465716077,0.564,3772.2,3771.8,2.916364]
[1717465716250,0.06985669,3771.9,3771.8,2.916364]
[1717465716434,0.564,3772.2,3771.8,2.916364]
[1717465716637,0.06985669,3771.9,3771.8,2.916364]
[1717465716861,0.564,3772.1,3771.8,2.916364]
[1717465717063,0.06985669,3771.9,3771.8,2.916364]
[1717465717386,4.94846,3772.5,3771.8,2.916364]
[1717465717590,4.94846,3772.5,3771.9,0.2916364]
[1717465717591,0.564,3772.2,3771.9,0.2916364]
[1717465718539,2.2977,3772.5,3771.9,0.2916364]
[1717465718738,0.564,3772.4,3771.9,2.7866364]
[1717465718934,0.564,3772.4,3772.0,0.54378764]
[1717465719246,0.564,3772.2,3772.0,0.54378764]
[1717465719984,0.07013514,3772.1,3772.0,0.54378764]
[1717465720190,0.07013514,3772.1,3771.9,2.7866364]
[1717465722512,0.07013514,3772.1,3771.9,0.2916364]
[1717465722814,0.07013514,3772.1,3771.8,2.65124]
[1717465723636,0.564,3772.0,3771.8,2.65124]
[1717465723967,0.07013514,3771.9,3771.8,2.65124]
[1717465724890,0.564,3772.2,3771.8,2.65124]
[1717465725094,0.07013514,3771.9,3771.8,2.65124]
[1717465726320,0.564,3772.2,3771.8,2.65124]
[1717465726472,0.07013514,3771.9,3771.8,2.65124]
[1717465726813,0.564,3772.2,3771.8,2.65124]
[1717465727199,0.07016901,3772.1,3771.8,2.65124]
[1717465733108,0.564,3772.2,3771.8,2.65124]
[1717465733956,2.6507,3772.6,3772.0,2.65109]
[1717465734125,0.564,3772.5,3772.0,2.65109]
[1717465734324,0.07024425,3772.1,3772.0,2.65109]
[1717465734541,0.564,3772.5,3772.0,2.65109]
[1717465734944,0.07026305,3772.4,3772.0,2.65109]
[1717465737236,0.07026305,3772.4,3772.3,2.6509]
[1717465737435,3.0,3773.3,3772.3,2.91599]
[1717465737436,0.564,3772.8,3772.3,2.91599]
[1717465737742,0.07033077,3772.4,3772.3,2.6509]
[1717465737950,0.07033077,3772.4,3772.3,4.9139]
[1717465738148,0.564,3772.9,3772.6,2.65068]
[1717465738335,0.564,3772.9,3772.6,3.142048]
[1717465738532,0.07039847,3772.8,3772.6,2.65068]
[1717465738929,0.564,3772.7,3772.6,2.65068]
[1717465739442,0.63439847,3772.7,3772.6,2.65068]
[1717465740046,0.63439847,3772.7,3772.3,2.263]
[1717465740215,0.63439847,3772.7,3772.2,2.65092]
[1717465740659,0.63439847,3772.7,3771.9,2.65118]
[1717465740660,0.564,3772.3,3771.9,2.65118]
[1717465740871,0.564,3772.3,3771.9,3.152468]
[1717465741493,0.07077084,3772.2,3771.9,3.152468]
[1717465743095,0.564,3772.1,3771.7,7.32]
[1717465743278,0.07077084,3772.2,3771.7,7.32]
[1717465743798,0.07077084,3772.1,3771.7,7.32]
[1717465743981,0.564,3772.3,3771.7,7.32]
[1717465744179,0.07077084,3772.0,3771.7,7.32]
[1717465744378,0.564,3772.3,3771.7,7.32]
[1717465744585,0.07077084,3771.9,3771.7,7.32]
[1717465744770,0.07077084,3771.9,3771.7,8.562949]
[1717465744966,2.65076,3772.5,3771.7,1.242949]
[1717465744967,0.564,3772.1,3771.7,1.242949]
[1717465745273,0.07077084,3772.0,3771.5,2.4581]
[1717465745480,0.564,3771.9,3771.2,4.98481]
[1717465745683,0.564,3771.9,3771.2,6.60595751]
[1717465746303,0.564,3772.1,3771.2,6.60595751]
[1717465749135,4.96379,3772.2,3771.2,6.60595751]
[1717465749504,4.96379,3772.2,3771.3,2.30313985]
[1717465750243,0.564,3772.1,3771.3,2.30313985]
[1717465750410,4.96379,3772.2,3771.3,4.12061587]
[1717465750616,0.564,3772.1,3771.4,0.92125594]
[1717465755648,0.564,3771.9,3771.4,0.92125594]
[1717465755819,2.65112,3772.0,3771.3,0.92125594]
[1717465755820,0.564,3771.7,3771.3,0.92125594]
[1717465756014,0.564,3771.7,3771.2,2.65161]
[1717465756472,0.564,3771.7,3771.1,7.32]
[1717465756673,0.564,3771.7,3770.8,17.64434515]
[1717465756875,0.564,3771.7,3770.9,6.05631867]
[1717465757028,0.564,3771.7,3771.0,0.92133923]
[1717465758453,0.564,3771.7,3770.9,3.20030545]
[1717465758771,4.91351,3771.8,3771.1,2.65172]
[1717465759185,2.2622,3771.8,3771.1,2.65172]
[1717465759389,2.2622,3771.8,3771.2,0.77866976]
[1717465761592,0.06996207,3771.7,3771.2,0.77866976]
[1717465761993,0.06996207,3771.6,3771.3,0.92123293]
[1717465762304,2.2622,3771.8,3771.2,0.77866976]
[1717465762681,0.06996207,3771.7,3771.2,0.77866976]
[1717465762852,2.2622,3771.8,3771.2,0.77866976]
[1717465763052,0.06996207,3771.6,3771.2,0.77866976]
[1717465763268,2.2622,3771.8,3771.3,0.48123967]
[1717465763562,0.06996207,3771.5,3771.3,0.48123967]
[1717465763760,0.06996207,3771.4,3771.3,5.58876967]
[1717465764001,2.2648,3772.2,3771.3,6.02877632]
[1717465764002,2.8288,3772.2,3771.3,6.02877632]
[1717465764202,0.07010129,3772.1,3771.5,2.6514]
[1717465764491,0.564,3772.3,3771.5,2.6514]
[1717465764705,0.564,3772.3,3771.6,0.56714]
[1717465765799,0.564,3772.3,3771.7,2.65131]
[1717465768503,0.07021039,3772.2,3771.7,2.65131]
[1717465768721,0.564,3772.3,3771.7,2.65131]
[1717465769220,0.07021039,3772.2,3771.7,2.65131]
[1717465769418,0.07021039,3772.2,3771.7,3.11133215]
[1717465769597,0.564,3772.3,3771.7,3.11133215]
[1717465769796,0.07021039,3772.2,3771.7,3.11133215]
[1717465770121,0.564,3772.3,3771.7,3.11133215]
[1717465770425,0.07021039,3772.2,3771.7,3.11133215]
[1717465770791,0.564,3772.3,3771.7,3.11133215]
[1717465771026,0.07021039,3772.2,3771.7,3.11133215]
[1717465771199,0.564,3772.1,3771.7,3.11133215]
[1717465773693,0.564,3772.1,3771.7,2.65131]
[1717465773901,0.564,3771.9,3771.4,1.38177148]
[1717465774095,0.564,3771.7,3771.4,0.92118418]
[1717465774437,0.564,3771.7,3771.3,9.97155]
[1717465774613,0.07028939,3771.6,3771.3,9.97155]
[1717465774816,0.564,3771.7,3771.3,9.97155]
[1717465775155,0.07036462,3771.5,3771.3,9.97155]
[1717465775497,2.8631,3771.9,3771.3,9.97155]
[1717465777719,0.07036462,3771.8,3771.3,9.97155]
[1717465778821,0.07036462,3771.8,3771.3,2.65155]
[1717465779057,0.07036462,3771.8,3771.0,5.0423]
[1717465779264,0.564,3771.7,3771.0,6.58339234]
[1717465781378,2.2991,3771.9,3771.0,2.6518]
[1717465781379,0.564,3771.5,3771.0,2.6518]
[1717465783886,0.564,3771.5,3770.8,7.32]
[1717465784182,2.397,3771.4,3770.8,7.32]
[1717465784560,0.07024047,3771.3,3770.8,7.32]
[1717465784742,2.397,3771.4,3770.8,7.32]
[1717465787288,2.397,3771.4,3770.8,8.71913342]
[1717465787667,2.397,3771.4,3770.8,1.39913342]
[1717465787995,2.397,3771.4,3770.8,1.38203564]
[1717465788173,2.397,3771.4,3770.7,2.65202]
[1717465788380,2.397,3771.4,3770.8,0.92135813]
[1717465791277,2.397,3771.4,3770.7,2.65202]
[1717465792055,0.564,3771.3,3770.7,2.65202]
[1717465794291,0.06990939,3771.2,3770.7,2.65202]
[1717465802186,0.06987553,3771.1,3770.7,2.65202]
[1717465802389,5.61258,3771.4,3770.7,2.65202]
[1717465802686,0.06987553,3771.3,3770.7,2.65202]
[1717465804289,0.564,3771.2,3770.7,2.65202]
[1717465804894,0.06989056,3771.1,3770.7,2.65202]
[1717465806400,5.61258,3771.4,3770.7,2.65202]
[1717465806624,0.06989056,3771.3,3770.7,2.65202]
[1717465807421,0.63389056,3771.3,3770.7,2.65202]
[1717465818909,0.63389056,3771.3,3770.8,0.92140094]
[1717465820883,0.63389056,3771.3,3770.5,1.38210346]
[1717465820884,3.0072,3771.1,3770.5,1.38210346]
[1717465821077,0.564,3770.9,3770.5,2.30357243]
[1717465821235,0.564,3770.9,3770.2,0.55266515]
[1717465821431,0.564,3770.9,3770.2,1.47415945]
[1717465822576,0.564,3770.9,3770.2,3.2029706]
[1717465822888,0.564,3770.9,3770.3,0.92151825]
[1717465825196,2.6516,3771.3,3770.3,1.4741834]
[1717465825498,3.2156,3771.3,3770.4,2.4957]
[1717465825716,3.2156,3771.3,3770.5,0.66201888]
[1717465826009,0.06971371,3771.2,3770.6,0.92151825]
[1717465826411,3.2156,3771.3,3770.6,0.92151825]
[1717465826771,2.6516,3771.3,3770.6,0.92151825]
[1717465826971,2.3209,3771.5,3770.7,2.65201]
[1717465827201,2.6514,3771.6,3770.9,4.97298]
[1717465827396,1.39131555,3772.0,3770.9,4.97298]
[1717465827397,2.65118,3772.0,3771.1,2.6517]
[1717465827602,0.564,3771.9,3771.1,2.6517]
[1717465827783,0.63372874,3771.9,3771.2,0.92132816]
[1717465827981,0.564,3771.9,3771.2,1.47399331]
[1717465828182,0.564,3771.9,3771.3,0.92132816]
[1717465829540,2.3756,3772.1,3771.3,0.92132816]
[1717465829696,0.564,3771.9,3771.3,0.92132816]
[1717465830419,0.06980024,3771.8,3771.4,2.4153]
[1717465831438,0.10309819,3771.8,3771.4,2.4153]
[1717465831607,0.10309819,3771.8,3771.4,3.15230842]
[1717465834959,0.10309819,3771.8,3771.4,5.80382842]
[1717465835485,0.564,3772.2,3771.4,5.80382842]
[1717465839268,0.10327129,3772.1,3771.4,5.80382842]
[1717465839473,0.10327129,3772.1,3771.5,0.58038284]
[1717465839687,0.564,3772.2,3771.5,0.58038284]
[1717465841060,0.564,3772.0,3771.5,0.58038284]
[1717465844015,0.564,3771.6,3771.0,4.94576]
[1717465844169,0.564,3771.4,3771.0,2.65176]
[1717465845081,0.564,3771.6,3771.0,2.65176]
[1717465845310,0.564,3771.6,3771.1,0.265176]
[1717465846465,0.564,3771.6,3771.0,2.65176]
[1717465846764,0.10359861,3771.5,3771.0,2.65176]
[1717465852715,0.564,3771.6,3771.0,2.65176]
[1717465853085,0.10359861,3771.5,3771.0,2.65176]
[1717465853283,0.564,3771.4,3770.7,4.0340596]
[1717465853486,0.564,3771.4,3770.7,2.65201]
[1717465853686,0.564,3771.4,3770.7,3.2023742]
[1717465854771,2.2727,3771.3,3770.7,2.65201]
[1717465855272,0.10359861,3771.2,3770.7,2.65201]
[1717465857572,0.66759861,3771.2,3770.7,2.65201]
[1717465868005,0.564,3771.2,3770.7,2.65201]
[1717465868362,2.2727,3771.3,3770.7,2.65201]
[1717465868605,2.8367,3771.3,3770.7,3.22184289]
[1717465868827,0.10318476,3771.2,3770.7,3.22184289]
[1717465868969,2.8367,3771.3,3770.7,3.22184289]
[1717465883896,0.564,3771.1,3770.7,3.22184289]
[1717465886092,2.8367,3771.3,3770.7,3.22184289]
[1717465887201,2.8367,3771.3,3770.8,0.92141171]
[1717465888726,0.10317346,3771.2,3770.8,0.92141171]
[1717465888925,2.8367,3771.3,3770.8,0.92141171]
[1717465889301,0.10317346,3771.2,3770.8,0.92141171]
[1717465889637,2.8367,3771.3,3770.8,0.92141171]
[1717465890007,0.10317346,3771.2,3770.8,0.92141171]
[1717465890319,2.8367,3771.3,3770.8,0.92141171]
[1717465890537,2.8367,3771.3,3770.9,0.92141788]
[1717465890697,0.10317346,3771.2,3770.8,0.92141788]
[1717465891039,2.8367,3771.3,3770.8,0.92141788]
[1717465891401,0.10315466,3771.2,3770.8,0.92141788]
[1717465891614,0.564,3771.2,3770.8,0.92141788]
[1717465891901,0.564,3771.2,3770.7,3.20467515]
[1717465892101,0.564,3771.2,3770.8,0.92140917]
[1717465894040,2.2727,3771.3,3770.8,0.92140917]
[1717465894242,0.10318099,3771.1,3770.8,0.92140917]
[1717465894417,2.2727,3771.3,3770.8,1.62133064]
[1717465894615,2.2727,3771.3,3770.9,0.92140917]
[1717465894817,0.10318099,3771.2,3770.9,0.92140917]
[1717465895005,2.2727,3771.3,3770.9,0.92140917]
[1717465895209,0.10318099,3771.1,3770.9,0.92140917]
[1717465895433,2.2727,3771.3,3770.9,0.92140917]
[1717465895626,0.10318099,3771.0,3770.9,0.92140917]
[1717465895832,2.2727,3771.3,3770.9,1.28765128]
[1717465896022,2.8367,3771.3,3771.0,0.92140917]
[1717465896242,2.8367,3771.3,3770.8,0.55266515]
[1717465896443,2.8367,3771.3,3770.8,0.92140532]
[1717465899024,0.10318099,3771.2,3770.8,0.92140532]
[1717465899221,2.8367,3771.3,3770.9,0.92141741]
[1717465899541,2.8367,3771.3,3771.0,0.92141741]
[1717465899875,0.10318099,3771.2,3770.7,4.58680127]
[1717465900041,0.10318099,3771.2,3770.8,0.92141923]
[1717465900355,0.10318099,3771.1,3770.9,0.92141923]
[1717465900563,0.10318099,3771.1,3770.7,3.20467515]
[1717465900767,2.8367,3771.3,3770.8,0.92143513]
[1717465900940,0.564,3771.2,3770.8,0.92143513]
[1717465901261,0.10311326,3771.1,3770.8,0.92143513]
[1717465904371,0.564,3771.2,3770.8,0.92143513]
[1717465904878,0.10311326,3771.0,3770.8,0.92143513]
[1717465905047,0.564,3771.2,3770.8,0.92143513]
[1717465905251,0.10311326,3770.9,3770.8,0.92143513]
[1717465905588,0.564,3771.2,3770.8,0.92143513]
[1717465905888,0.10311326,3770.9,3770.8,0.92143513]
[1717465906033,0.564,3771.2,3770.8,0.92143513]
[1717465906449,0.10311326,3771.1,3770.8,0.92143513]
[1717465906670,2.2727,3771.3,3770.8,0.92143513]
[1717465907047,0.10311326,3771.2,3770.8,0.92143513]
[1717465907252,2.2727,3771.3,3770.8,0.92143513]
[1717465907458,0.10311326,3771.1,3770.8,0.92143513]
[1717465907873,2.2727,3771.3,3770.8,0.92143513]
[1717465908375,0.10311326,3771.2,3770.7,3.20467515]
[1717465908558,0.10311326,3771.2,3770.9,0.92141649]
[1717465908755,2.2727,3771.3,3770.8,0.92141649]
[1717465909060,0.10311326,3771.1,3770.9,0.92141649]
[1717465909233,2.2727,3771.3,3770.7,4.58679989]
[1717465909433,2.2727,3771.3,3770.8,0.92141811]
[1717465909761,0.10311326,3771.2,3770.8,0.92141811]
[1717465910160,2.2727,3771.3,3770.8,0.92141811]
[1717465910473,0.10311326,3771.1,3770.8,0.92141811]
[1717465910679,2.2727,3771.3,3770.8,0.92141811]
[1717465911193,0.10311326,3771.2,3770.8,0.92141811]
[1717465911558,2.2727,3771.3,3770.8,0.92141811]
[1717465911764,0.10311326,3771.1,3770.8,0.92141811]
[1717465912192,2.2727,3771.3,3770.8,0.92141811]
[1717465912548,0.10311326,3771.0,3770.8,0.92141811]
[1717465912766,2.2727,3771.3,3770.8,0.92141811]
[1717465913193,0.10311326,3771.2,3770.8,0.92141811]
[1717465913594,0.10311326,3771.1,3770.8,0.92141811]
[1717465913994,2.2727,3771.3,3770.8,0.92141811]
[1717465915051,0.10311326,3771.2,3770.9,0.92140959]
[1717465915277,2.2727,3771.3,3771.0,0.92140959]
[1717465915494,0.10311326,3771.1,3770.7,4.58678953]
[1717465915795,2.2727,3771.3,3770.8,0.92140946]
[1717465916351,0.10311326,3771.2,3770.8,0.92140946]
[1717465916767,2.2727,3771.3,3770.8,0.92140946]
[1717465916967,0.10315466,3771.1,3770.8,0.92140946]
[1717465917170,2.2727,3771.3,3770.8,0.92140946]
[1717465917572,0.10315466,3771.2,3770.8,0.92140946]
[1717465917806,2.2727,3771.3,3770.9,0.92141226]
[1717465917975,2.2727,3771.3,3770.8,0.92141226]
[1717465918496,0.10315466,3771.2,3770.8,0.92141226]
[1717465918905,2.2727,3771.3,3770.8,0.92141226]
[1717465919195,2.2727,3771.3,3770.9,0.92141226]
[1717465919410,2.2727,3771.3,3771.0,0.92141226]
[1717465919710,0.10315466,3771.2,3770.7,4.58679354]
[1717465919881,0.10315466,3771.2,3770.8,0.92141947]
[1717465920205,2.2727,3771.3,3770.8,0.92141947]
[1717465920497,0.10313208,3771.1,3770.9,0.92141947]
[1717465920795,2.8367,3771.3,3770.9,0.92141947]
[1717465921104,0.10313208,3771.0,3770.9,0.92141947]
[1717465921266,2.8367,3771.3,3770.9,0.92141947]
[1717465921467,2.8367,3771.3,3771.0,0.92141947]
[1717465921692,2.8367,3771.3,3770.8,0.55266515]
[1717465921878,2.8367,3771.3,3770.9,0.92141333]
[1717465923214,0.564,3771.3,3770.9,0.92141333]
[1717465923378,2.65158,3771.4,3770.9,0.92141333]
[1717465923909,2.4396,3771.3,3770.9,0.92141333]
[1717465924206,3.0036,3771.3,3770.9,0.92141333]
[1717465929024,0.10313208,3771.2,3770.9,0.92141333]
[1717465929221,0.10313208,3771.2,3771.0,0.92141333]
[1717465929424,0.66713208,3771.1,3770.7,0.55266515]
[1717465929625,0.564,3770.9,3770.8,0.92143644]
[1717465929834,0.564,3770.9,3770.7,0.92143644]
[1717465930005,2.3446,3771.0,3770.8,0.92143644]
[1717465930202,0.10298155,3770.8,3770.5,1.93481298]
[1717465930390,0.564,3770.9,3770.6,0.92146329]
[1717465934498,2.3446,3771.0,3770.6,0.92146329]
[1717465934729,2.9086,3771.0,3770.6,0.92146329]
[1717465934914,2.3446,3771.0,3770.6,0.92146329]
[1717465935115,2.9086,3771.0,3770.6,0.92146329]
[1717465935329,2.9086,3771.0,3770.6,1.18670364]
[1717465935500,2.9086,3771.0,3770.7,0.92146329]
[1717465935833,0.10294016,3770.9,3770.7,0.92146329]
[1717465936699,2.9086,3771.0,3770.7,0.92146329]
[1717465937243,0.10294016,3770.9,3770.7,0.92146329]
[1717465937533,2.9086,3771.0,3770.7,0.92146329]
[1717465937907,0.10294016,3770.9,3770.7,0.92146329]
[1717465938419,2.9086,3771.0,3770.5,1.38214783]
[1717465938621,2.9086,3771.0,3770.5,0.921475]
[1717465938824,2.9086,3771.0,3770.6,0.921475]
[1717465939006,2.3446,3771.0,3770.4,2.65221]
[1717465939208,2.3446,3771.0,3770.5,0.92148624]
[1717465939437,0.564,3770.9,3770.5,0.92148624]
[1717465939731,2.3446,3771.0,3770.5,0.92148624]
[1717465939894,2.9086,3771.0,3770.5,0.92148624]
[1717465941134,0.564,3770.8,3770.5,0.92148624]
[1717465941332,0.564,3770.8,3770.3,1.38214783]
[1717465941631,0.564,3770.8,3770.3,2.30366824]
[1717465941928,2.3446,3771.0,3770.3,1.3822841]
[1717465942141,0.564,3770.8,3770.3,2.30380683]
[1717465943223,0.564,3770.8,3770.4,0.92152273]
[1717465943432,0.564,3770.8,3770.2,0.55266515]
[1717465943742,0.564,3770.6,3770.2,1.47418743]
[1717465943914,2.4501,3770.7,3770.1,0.41530219]
[1717465943915,0.564,3770.3,3770.1,0.41530219]
[1717465944248,0.564,3770.3,3769.8,7.32]
[1717465944451,2.4501,3770.7,3769.9,2.30405725]
[1717465944452,0.564,3770.5,3769.9,2.30405725]
[1717465945755,0.564,3770.5,3770.0,0.92158746]
[1717465946092,0.564,3770.5,3769.9,1.3823812]
[1717465946290,0.564,3770.5,3769.9,3.81917877]
[1717465946438,0.564,3770.5,3770.0,0.92158716]
[1717465949277,0.564,3770.5,3769.9,2.89759161]
[1717465950385,0.564,3770.5,3769.9,1.51521041]
[1717465956195,2.4677,3770.2,3769.8,7.32]
[1717465956693,0.10267291,3770.1,3769.8,7.32]
[1717465960501,0.10267291,3770.1,3769.7,3.0680163]
[1717465960707,2.4677,3770.2,3769.8,0.92161802]
[1717465961024,2.4677,3770.2,3769.7,3.0680163]
[1717465961176,2.4677,3770.2,3769.8,0.92162353]
[1717465961371,2.4677,3770.2,3769.7,3.0680163]
[1717465961574,2.4677,3770.2,3769.8,0.92162105]
[1717465962290,0.564,3770.1,3769.7,0.4153563]
[1717465967661,2.4677,3770.2,3769.7,0.4153563]
[1717465973466,3.0317,3770.2,3769.7,0.4153563]
[1717465976586,0.10246207,3770.1,3769.7,0.4153563]
[1717465980418,0.10246207,3770.1,3769.8,0.92165466]
[1717465984194,0.10246207,3770.1,3769.8,2.65264]
[1717465984508,2.2652,3770.8,3770.0,2.65251]
[1717465984822,2.2652,3770.8,3770.2,2.65232]
[1717465985032,2.8292,3770.8,3770.3,0.265232]
[1717465985209,1.39104457,3771.2,3770.4,2.65223]
[1717465985210,2.2652,3771.2,3770.4,2.65223]
[1717465985414,0.564,3770.8,3770.4,2.65223]
[1717465986196,2.2652,3771.2,3770.4,2.65223]
[1717465986396,0.564,3770.9,3770.5,0.55]
[1717465986594,6.30763457,3771.7,3770.7,2.423]
[1717465986797,0.564,3771.2,3770.7,2.423]
[1717465987324,4.91659,3771.7,3770.8,2.65192]
[1717465987523,0.564,3771.3,3770.8,3.20192]
[1717465989197,0.10282347,3771.2,3770.9,0.92130963]
[1717465989394,0.10282347,3771.2,3770.8,3.20192]
[1717465989606,0.564,3771.5,3770.8,3.56810502]
[1717465989808,0.10282347,3771.1,3770.8,3.56810502]
[1717465990034,0.564,3771.5,3770.8,3.56810502]
[1717465990612,0.10282347,3771.4,3770.8,3.56810502]
[1717465992028,0.564,3771.4,3770.8,3.56810502]
[1717465992431,0.1030041,3771.3,3770.8,3.56810502]
[1717465992615,0.1030041,3771.3,3771.0,2.6518]
[1717465992816,0.564,3771.5,3771.0,2.6518]
[1717465993212,0.1030041,3771.4,3771.0,2.6518]
[1717465993822,0.1030041,3771.4,3771.2,2.65167]
[1717465994155,4.9642,3772.1,3771.4,2.65146]
[1717465994156,0.564,3772.1,3771.4,2.65146]
[1717465994308,0.564,3772.1,3771.4,3.262316]
[1717465994514,0.564,3772.1,3771.6,2.65137]
[1717465994928,2.3131,3772.4,3771.7,2.4829]
[1717465995159,0.564,3772.4,3771.7,2.4829]
[1717465995328,2.2795,3772.7,3771.8,3.50448]
[1717465995655,2.65052,3772.9,3771.8,3.50448]
[1717465995656,0.564,3772.6,3771.8,3.50448]
[1717465996659,0.564,3772.6,3772.1,2.65101]
[1717465996810,0.564,3772.4,3772.1,2.65101]
[1717465998157,4.93002,3772.9,3772.1,2.65101]
[1717465998362,0.564,3772.5,3772.1,2.65101]
[1717465999155,0.564,3772.3,3772.1,2.65101]
[1717466000312,2.65052,3772.9,3772.2,2.2818]
[1717466000512,0.564,3772.4,3772.2,2.2818]
[1717466001852,0.564,3772.4,3772.1,2.65101]
[1717466002913,2.65052,3772.9,3772.1,2.65101]
[1717466003146,0.564,3772.5,3772.1,2.65101]
[1717466005122,2.65052,3772.9,3772.1,3.23516]
[1717466005324,0.564,3772.5,3772.1,3.23516]
[1717466007576,2.64996,3773.7,3772.6,2.3468]
[1717466007722,0.564,3773.3,3772.7,0.05300655]
[1717466007934,0.564,3773.2,3772.7,0.05300655]
[1717466008326,2.4555,3773.9,3772.9,2.65046]
[1717466008539,0.09676795,3773.1,3772.9,2.65046]
[1717466008737,0.564,3773.4,3772.9,2.65046]
[1717466008937,0.09735488,3773.0,3772.9,2.65046]
[1717466009164,0.564,3773.3,3772.9,3.20046]
[1717466009377,0.09735488,3773.0,3772.9,2.65046]
[1717466009700,0.564,3773.3,3772.9,3.20046]
[1717466009852,0.564,3773.3,3772.9,2.65046]
[1717466010240,2.4555,3773.9,3773.0,2.65041]
[1717466010241,0.09761438,3773.2,3773.0,2.65041]
[1717466010432,0.564,3773.3,3773.0,2.65041]
[1717466011642,2.4555,3773.9,3773.3,2.65019]
[1717466011955,0.564,3773.4,3773.3,2.65019]
[1717466012365,2.3822,3773.3,3772.9,2.65042]
[1717466012592,0.564,3773.1,3772.9,2.65042]
[1717466013094,0.09775352,3773.0,3772.9,2.65042]
[1717466014680,2.3822,3773.3,3772.9,2.65042]
[1717466014877,0.09764068,3773.0,3772.9,2.65042]
[1717466015074,0.564,3773.2,3772.9,2.65042]
[1717466015238,0.564,3773.2,3772.5,2.65069]
[1717466015436,0.564,3773.2,3772.5,3.940519]
[1717466016641,2.3822,3773.3,3772.5,3.940519]
[1717466016876,2.9462,3773.3,3772.5,3.940519]
[1717466017295,5.06069,3773.6,3772.8,2.65049]
[1717466017474,0.09768205,3773.2,3772.8,4.94049]
[1717466017648,0.564,3773.5,3772.9,0.494049]
[1717466017992,0.564,3773.3,3772.9,0.494049]
[1717466018570,0.564,3773.3,3772.8,2.65049]
[1717466019142,0.564,3773.1,3772.8,2.65049]
[1717466020083,5.06069,3773.6,3772.8,2.65049]
[1717466020290,0.564,3773.3,3772.8,2.65049]
[1717466020458,0.564,3773.3,3772.8,3.0445219]
[1717466020844,5.06069,3773.6,3772.8,3.0445219]
[1717466021044,0.564,3773.3,3772.8,3.0445219]
[1717466023478,0.564,3773.3,3772.8,2.65049]
[1717466024401,0.564,3773.2,3772.8,2.65049]
[1717466024612,5.06069,3773.6,3772.8,2.65049]
[1717466024773,0.564,3773.3,3772.8,2.65049]
[1717466025559,5.06069,3773.6,3772.8,2.65049]
[1717466025992,0.564,3773.3,3772.8,2.65049]
[1717466026675,5.06069,3773.6,3772.8,2.65049]
[1717466026997,0.564,3773.2,3772.8,2.65049]
[1717466028470,5.06069,3773.6,3772.8,2.65049]
[1717466028999,0.564,3773.3,3772.8,2.65049]
[1717466029303,5.06069,3773.6,3772.8,2.65049]
[1717466029488,5.06069,3773.6,3772.8,5.4550219]
[1717466029693,0.564,3773.4,3772.8,5.4550219]
[1717466029899,5.06069,3773.6,3772.8,5.4550219]
[1717466030225,0.564,3773.4,3772.8,5.4550219]
[1717466030572,5.06069,3773.6,3772.8,5.4550219]